fUSD/lending_fUSD_20240201
["ID","MTS","AMOUNT","RATE_DAILY","PERIOD"]
[313102956,1706746241110,-509.35522682,0.00037698,4]
[313102958,1706746241119,-155.49412686,0.00037698,7]
[313102960,1706746241128,-4048.14991295,0.00037698,15]
[313102962,1706746241137,-1717.31,0.000377,3]
[313102964,1706746241147,-1144.73313247,0.000377,2]
[313102966,1706746241156,-1144.73313246,0.000377,2]
[313102968,1706746241166,-1144.73313246,0.000377,2]
[313102970,1706746241179,-1144.73313246,0.000377,2]
[313102972,1706746241189,-1144.73313246,0.000377,2]
[313102974,1706746241199,-1144.73313246,0.000377,2]
[313102976,1706746241209,-1144.73313246,0.000377,2]
[313102978,1706746241218,-1144.73313246,0.000377,2]
[313102980,1706746241228,-153.95,0.000377,3]
[313102982,1706746241237,-153.95,0.000377,3]
[313102984,1706746241247,-153.95,0.000377,3]
[313102986,1706746241256,-153.95,0.000377,3]
[313102988,1706746241265,-1144.73313246,0.000377,2]
[313102990,1706746241274,-2840.89,0.000377,3]
[313102992,1706746241284,-2840.89,0.000377,3]
[313102994,1706746241294,-2840.89,0.000377,3]
[313102996,1706746241304,-2840.89,0.000377,3]
[313102998,1706746241315,-2840.89,0.000377,3]
[313103000,1706746241325,-2840.89,0.000377,3]
[313103002,1706746241334,-2840.89,0.000377,3]
[313103004,1706746241343,-2840.89,0.000377,3]
[313103006,1706746241352,-2840.89,0.000377,3]
[313103008,1706746241363,-2840.89,0.000377,3]
[313103009,1706746241372,-2840.89,0.000377,3]
[313103012,1706746241382,-2840.89,0.000377,3]
[313103014,1706746241391,-2840.89,0.000377,3]
[313103016,1706746241400,-2840.89,0.000377,3]
[313103018,1706746241409,-2840.89,0.000377,3]
[313103020,1706746241419,-2840.89,0.000377,3]
[313103022,1706746241428,-2840.89,0.000377,3]
[313103024,1706746241437,-2840.89,0.000377,3]
[313103025,1706746241447,-2840.89,0.000377,3]
[313103028,1706746241458,-2840.89,0.000377,3]
[313103030,1706746241467,-1144.73313246,0.000377,2]
[313103031,1706746241476,-1144.73313246,0.000377,2]
[313103033,1706746241485,-1144.73313246,0.000377,2]
[313103035,1706746241495,-1144.73313246,0.000377,2]
[313103037,1706746241505,-1144.73313246,0.000377,2]
[313103039,1706746241514,-10526.17727502,0.00037713,11]
[313103042,1706746241523,-158.79,0.00037724,2]
[313103044,1706746241533,-250.0,0.00037796,2]
[313103046,1706746241542,-416.0,0.00037798,2]
[313103047,1706746241551,-700.0,0.0003787,2]
[313103048,1706746241561,-700.0,0.0003787,2]
[313103049,1706746241570,-10526.17727502,0.00037881,11]
[313103050,1706746241579,-200.0,0.0003789,7]
[313103051,1706746241587,-200.0,0.0003789,7]
[313103052,1706746241597,-209.84490538,0.0003789,7]
[313103053,1706746241606,-9438.3593382,0.00037896,2]
[313103054,1706746241615,-7826.065315,0.00037897,2]
[313103055,1706746241624,-1304.344219,0.00037897,2]
[313103056,1706746241632,-1304.344219,0.00037897,2]
[313103057,1706746241641,-1956.516329,0.00037897,2]
[313103058,1706746241651,-1304.344219,0.00037897,2]
[313103059,1706746241660,-2739.12286,0.00037897,2]
[313103060,1706746241669,-178.652212,0.00037897,2]
[313103061,1706746241679,-2739.122861,0.00037897,2]
[313103062,1706746241688,-5556.48654,0.00037897,2]
[313103063,1706746241697,-409.248352,0.00037897,2]
[313103064,1706746241706,-172.459649,0.00037897,2]
[313103065,1706746241714,-3210.15715482,0.00037897,2]
[313103066,1706746241723,-768.37933403,0.00037898,2]
[313103067,1706746241732,-155.63258898,0.00037898,4]
[313103068,1706746241741,-242.63639215,0.00037898,4]
[313103069,1706746241751,-164.34738147,0.00037898,4]
[313103070,1706746241760,-155.45988983,0.00037898,4]
[313103071,1706746241769,-1205.56401792,0.00037898,4]
[313103072,1706746241779,-155.55978257,0.00037898,4]
[313103073,1706746241787,-157.19765992,0.00037898,4]
[313103074,1706746241797,-2648.32495509,0.00037898,2]
[313103075,1706746241806,-1120.14795465,0.00037898,2]
[313103076,1706746241815,-250.47360772,0.00037898,4]
[313103077,1706746241824,-156.1203484,0.00037898,4]
[313103078,1706746241833,-3305.97593664,0.00037898,2]
[313103079,1706746241842,-33833.80747997,0.00037899,4]
[313103080,1706746241851,-150.0,0.00037899,2]
[313103081,1706746241861,-150.0,0.00037899,2]
[313103082,1706746241870,-4497.37024342,0.000379,7]
[313103083,1706746241879,-3000.0,0.000379,20]
[313103084,1706746241888,-486112.61305887,0.000379,3]
[313103085,1706746241905,-725.36084865,0.000379,3]
[313103086,1706746241917,-741.27723955,0.000379,3]
[313103087,1706746241929,-420.8888349,0.000379,3]
[313103088,1706746242300,-2630.31145441,0.00025513,5]
[313103089,1706746242312,-426.74,0.00025513,5]
[313103090,1706746242327,-4677.94060237,0.00025513,5]
[313103091,1706746242336,-300.0,0.00029269,2]
[313103092,1706746242345,-22804.81960987,0.000379,3]
[313103093,1706746242357,-1785.03377964,0.000379,3]
[313103098,1706746243420,-157.73949446,0.00022899,2]
[313103099,1706746243429,-130.37855802,0.00025512,2]
[313103100,1706746243445,-161.62787712,0.00025512,2]
[313103101,1706746243454,-402.47576979,0.00031387,2]
[313103102,1706746243463,-48.09239678,0.000377,2]
[313103103,1706746243474,-873.55878326,0.000377,2]
[313103113,1706746245582,-2440.30931548,0.00025512,2]
[313103114,1706746245725,-2059.37744769,0.00025512,2]
[313103115,1706746245735,-447.5188044,0.00025512,2]
[313103116,1706746245745,-223.08195242,0.000377,2]
[313103117,1706746245755,-3305.97593664,0.00037898,2]
[313103118,1706746245765,-87632.07063452,0.000379,3]
[313103119,1706746245774,-275.5,0.000379,2]
[313103120,1706746245783,-4565.426632,0.0003791,20]
[313103121,1706746245793,-126032.4233641,0.00037911,2]
[313103122,1706746245802,-3630.3885074,0.00037911,2]
[313103123,1706746245811,-150.0,0.00037937,7]
[313103124,1706746245820,-304.761,0.00037937,7]
[313103125,1706746245830,-3210.15715482,0.00037997,2]
[313103126,1706746245839,-150.0,0.00037999,2]
[313103127,1706746245848,-150.0,0.00037999,2]
[313103128,1706746245857,-49769.91632853,0.00038,4]
[313103129,1706746245866,-1018.15021542,0.00038,2]
[313103130,1706746245876,-107393.29853184,0.00038,2]
[313103131,1706746245887,-4936.50342484,0.00038,2]
[313103132,1706746245926,-1718.67884822,0.00038,2]
[313103133,1706746365147,2975.1026,0.00022429,2]
[313103136,1706746867210,150.0,0.00021899,2]
[313103137,1706746868485,150.0,0.00022447,2]
[313103144,1706747431788,-421.03960501,0.00022764,2]
[313103145,1706747431798,-1375.07063722,0.00022764,2]
[313103146,1706747431807,-281.9797924,0.00022765,2]
[313103147,1706747431817,-4499.68676317,0.00022765,2]
[313103148,1706747431826,-3134.76429599,0.00022766,2]
[313103149,1706747431837,-158.06564159,0.00022775,2]
[313103150,1706747431846,-172.09680919,0.00022897,2]
[313103151,1706747431855,-155.0,0.00022897,2]
[313103152,1706747431865,-1062.34025431,0.00022898,2]
[313103153,1706747431874,-150.0,0.00022898,2]
[313103154,1706747431884,-6231.5429,0.00022899,2]
[313103155,1706747431893,-6951.63623523,0.00022899,2]
[313103156,1706747431913,-8503.4,0.00022899,2]
[313103157,1706747431924,-693.30574779,0.00022899,2]
[313103222,1706747437644,-5473.3306994,0.00022899,2]
[313103227,1706747437703,-600.1668679,0.00022899,2]
[313103229,1706747437716,-1150.0,0.00022899,2]
[313103235,1706747437761,-10791.77004968,0.00022899,2]
[313103237,1706747437770,-300.0,0.00022899,2]
[313103239,1706747437780,-169.1,0.00023,2]
[313103241,1706747437789,-158.06564155,0.00023848,2]
[313103243,1706747437799,-201.6881805,0.00024,2]
[313103245,1706747437808,-299.99,0.00024199,7]
[313103246,1706747437818,-158.06564155,0.00024921,2]
[313103247,1706747437827,-499.99,0.00025,2]
[313103248,1706747437836,-2319.98350189,0.00025,2]
[313103249,1706747437846,-208.41030953,0.00025,4]
[313103250,1706747437857,-158.06564155,0.00025995,2]
[313103251,1706747437866,-158.06564155,0.00027068,2]
[313103252,1706747437876,-690.93601058,0.00028,2]
[313103253,1706747437886,-158.06564155,0.00028141,2]
[313103254,1706747437895,-155.0,0.00028275,2]
[313103255,1706747437904,-535.64853932,0.000285,2]
[313103256,1706747437914,-158.06564155,0.00029214,2]
[313103257,1706747437924,-518.32,0.00029919,2]
[313103258,1706747437933,-500.0,0.0003,2]
[313103259,1706747437942,-155.0,0.0003,2]
[313103260,1706747437952,-375.48800695,0.0003,2]
[313103261,1706747437963,-158.06564155,0.00030288,2]
[313103262,1706747437972,-158.06564155,0.00031361,2]
[313103263,1706747437981,-1852.42,0.00031476,2]
[313103264,1706747437991,-487.11,0.00031525,2]
[313103265,1706747438001,-2000.0,0.00031594,2]
[313103266,1706747438011,-2987.57,0.00031635,2]
[313103267,1706747438020,-1000.0,0.00031699,2]
[313103268,1706747438030,-1907.15,0.00031705,2]
[313103269,1706747438039,-2500.0,0.00031715,3]
[313103270,1706747438049,-2209.21,0.00031859,2]
[313103271,1706747438059,-250.0,0.00031919,2]
[313103273,1706747438069,-3596.28,0.00031971,2]
[313103275,1706747438078,-14247.33730985,0.00031995,4]
[313103276,1706747438087,-155.0,0.00032,2]
[313103277,1706747438097,-155.49412686,0.00032,4]
[313103278,1706747438106,-951.41,0.0003202,2]
[313103279,1706747438115,-150.0,0.00032165,2]
[313103280,1706747438125,-518.32,0.00032183,2]
[313103281,1706747438134,-715.81663375,0.00032263,2]
[313103283,1706747438158,-911.59848134,0.00032263,2]
[313103285,1706747438187,-1077.58488491,0.00032263,2]
[313103286,1706747438196,-158.06564155,0.00032434,2]
[313103287,1706747438206,-2988.89524644,0.00032863,2]
[313103288,1706747438219,-549.11475356,0.00032863,2]
[313103289,1706747438229,-125.86024644,0.00032877,2]
[313103290,1706747438241,-24.13975356,0.00032877,2]
[313103291,1706747438250,-2475.86024644,0.00032899,2]
[313103293,1706747438262,-2212.0210525,0.00032899,2]
[313103295,1706747438273,-1711.8021486,0.00032899,2]
[313103299,1706747438302,-738.54219566,0.00032899,2]
[313103307,1706747440353,-882.61844699,0.00025,4]
[313103308,1706747440363,-529.67846275,0.00032408,2]
[313103309,1706747440410,-883.39153725,0.00032408,2]
[313103310,1706747440420,-819.28241105,0.00032899,2]
[313103311,1706747440432,-1086.43212366,0.00032899,2]
[313103312,1706747440444,-444.0826,0.00032899,2]
[313103327,1706747442748,-676.58873997,0.00032899,2]
[313103328,1706747442759,-494.33920324,0.00032899,2]
[313103329,1706747442858,-660.58909399,0.00032899,2]
[313103330,1706747442870,-10596.49152106,0.00032899,2]
[313103331,1706747442881,-1654.32866383,0.00032899,2]
[313103332,1706747442891,-219.24,0.00033026,2]
[313103333,1706747442901,-182.08,0.0003304,120]
[313103334,1706747442910,-10.68018096,0.00033116,2]
[313103430,1706747445762,-274.73935495,0.00032898,4]
[313103431,1706747445927,-5770.90504855,0.00032898,4]
[313103433,1706747446151,-208.55981904,0.00033116,2]
[313103435,1706747446164,-1000.0,0.00033151,120]
[313103437,1706747446173,-250.0,0.00033158,2]
[313103438,1706747446182,-1827.86,0.00033202,2]
[313103439,1706747446191,-219.24,0.00033207,2]
[313103440,1706747446201,-219.24,0.00033297,2]
[313103441,1706747446210,-1213.0,0.00033313,2]
[313103442,1706747446219,-424.0,0.00033313,2]
[313103443,1706747446228,-271.166,0.00033313,2]
[313103444,1706747446238,-236.0,0.00033313,2]
[313103445,1706747446247,-500.0,0.00033336,2]
[313103446,1706747446256,-1677.43,0.00033336,2]
[313103447,1706747446265,-219.24,0.00033388,2]
[313103448,1706747446274,-219.24,0.00033479,2]
[313103449,1706747446284,-158.06564155,0.00033507,2]
[313103450,1706747446293,-219.24,0.00033569,2]
[313103451,1706747446302,-4144.6728,0.00033631,2]
[313103452,1706747446311,-219.24,0.0003366,2]
[313103453,1706747446320,-951.41,0.00033664,2]
[313103454,1706747446329,-8607.21,0.00033731,2]
[313103455,1706747446338,-219.24,0.0003375,2]
[313103456,1706747446351,-219.24,0.00033841,2]
[313103457,1706747446361,-219.24,0.00033932,2]
[313103458,1706747446370,-636.30550672,0.00034,4]
[313103459,1706747446379,-219.24,0.00034022,2]
[313103460,1706747446388,-301.62659085,0.00034107,7]
[313103461,1706747446398,-219.24,0.00034113,2]
[313103462,1706747446407,-165.79,0.00034134,2]
[313103463,1706747446417,-219.24,0.00034203,2]
[313103464,1706747446427,-219.24,0.00034294,2]
[313103465,1706747446435,-219.24,0.00034384,2]
[313103466,1706747446445,-271.86,0.00034389,2]
[313103467,1706747446454,-518.32,0.00034447,2]
[313103468,1706747446463,-219.24,0.00034475,2]
[313103469,1706747446474,-219.24,0.00034566,2]
[313103470,1706747446483,-158.06564155,0.0003458,2]
[313103471,1706747446494,-438.9742,0.00034613,2]
[313103472,1706747446504,-219.24,0.00034656,2]
[313103473,1706747446514,-1791.68,0.00034713,2]
[313103474,1706747446524,-5559.6178759,0.00034713,2]
[313103486,1706747583205,217.01,0.00022501,2]
[313103495,1706748631904,-150.0,0.00023,2]
[313103496,1706748631913,-380.26541467,0.00023877,2]
[313103497,1706748634192,-2754.49888132,0.00023877,2]
[313103498,1706748634202,-4499.68676317,0.00023878,2]
[313103499,1706748634211,-1375.07063722,0.00023879,2]
[313103500,1706748634220,-163.90303503,0.00023894,2]
[313103501,1706748634229,-201.6881805,0.00024897,2]
[313103502,1706748634238,-685.5176,0.00024898,2]
[313103503,1706748634247,-266.47788631,0.00024997,2]
[313103504,1706748634256,-219602.29287703,0.00024998,2]
[313103505,1706748634268,-6633.43544199,0.00024998,2]
[313103506,1706748634280,-3622.69292414,0.00024998,2]
[313103507,1706748634291,-280.378098,0.00024998,2]
[313103508,1706748634306,-323.26186872,0.00024998,2]
[313103575,1706748637972,-16038.03651772,0.00024998,2]
[313103576,1706748637984,-4224.9,0.00024998,2]
[313103577,1706748638102,-12755.9431611,0.00024998,2]
[313103578,1706748638113,-1076.31462604,0.00024998,2]
[313103579,1706748638124,-761.89216963,0.00024998,2]
[313103580,1706748638137,-365.80397817,0.00024998,2]
[313103581,1706748638157,-124903.31682889,0.00024998,2]
[313103582,1706748638166,-92080.71698214,0.00024999,2]
[313103583,1706748638175,-20000.0,0.00025,2]
[313103584,1706748638184,-350.0,0.00025,3]
[313103585,1706748638193,-208.41030953,0.00025,4]
[313103586,1706748638203,-2319.98350189,0.00025,2]
[313103587,1706748638212,-400.0,0.00027,3]
[313103588,1706748638221,-163.90303499,0.00027171,2]
[313103589,1706748638230,-10000.0,0.00028,2]
[313103590,1706748638239,-153.07,0.00028233,2]
[313103591,1706748638249,-150.0,0.00028253,2]
[313103592,1706748638258,-2705.0,0.00028321,2]
[313103593,1706748638267,-250.0,0.00028439,2]
[313103594,1706748638276,-632.08,0.00028481,2]
[313103595,1706748638285,-19123.35328103,0.000289,2]
[313103596,1706748638294,-450.0,0.00029,3]
[313103597,1706748638303,-6042.0,0.000291,3]
[313103598,1706748638312,-271.86,0.00029551,2]
[313103600,1706748638322,-535.6486,0.000299,2]
[313103602,1706748638331,-155.0,0.0003,2]
[313103604,1706748638340,-500.0,0.0003,2]
[313103606,1706748638349,-163.90303499,0.00030449,2]
[313103608,1706748638358,-499.99,0.00030999,2]
[313103611,1706748638367,-20000.0,0.00031,2]
[313103614,1706748638376,-500.0,0.00031,3]
[313103617,1706748638386,-1000.0,0.00031434,2]
[313103619,1706748638395,-2000.0,0.00031465,2]
[313103621,1706748638405,-508.15,0.00031476,2]
[313103623,1706748638414,-1493.06,0.00031635,2]
[313103624,1706748638423,-204.0,0.00031692,2]
[313103625,1706748638432,-342.0,0.000317,2]
[313103626,1706748638441,-134220.314559,0.000318,3]
[313103627,1706748638450,-8388.76965991,0.0003199,3]
[313103628,1706748638459,-156.25094584,0.00032,2]
[313103629,1706748638468,-20000.0,0.00032,2]
[313103630,1706748638478,-219.24,0.00032228,2]
[313103631,1706748638489,-8388.76965991,0.00032732,4]
[313103632,1706748638498,-634.27,0.00032742,2]
[313103633,1706748638507,-500.0,0.00032877,2]
[313103634,1706748638517,-1480.16222093,0.00033,5]
[313103635,1706748638526,-550.0,0.00033,3]
[313103636,1706748638535,-150.0,0.00033,2]
[313103637,1706748638544,-1522.67,0.00033038,2]
[313103638,1706748638554,-1093.59,0.00033038,2]
[313103639,1706748638563,-677.899,0.00033104,2]
[313103640,1706748638572,-427.0,0.00033104,2]
[313103641,1706748638581,-258.168,0.00033104,2]
[313103642,1706748638590,-320.0,0.00033104,2]
[313103643,1706748638600,-860.0,0.00033104,2]
[313103644,1706748638609,-150.475,0.00033104,2]
[313103645,1706748638618,-151.015,0.00033104,2]
[313103646,1706748638627,-150.185,0.00033104,2]
[313103647,1706748638637,-150.71,0.00033104,2]
[313103648,1706748638646,-150.0,0.00033104,2]
[313103649,1706748638655,-573.41,0.00033227,120]
[313103650,1706748638664,-1590.73,0.00033257,3]
[313103651,1706748638673,-204.0,0.00033264,5]
[313103652,1706748638683,-250.0,0.00033394,2]
[313103653,1706748638692,-3324.96,0.00033509,2]
[313103654,1706748638701,-16777.5393198,0.00033612,5]
[313103655,1706748638711,-18058.83,0.00033622,2]
[313103656,1706748638720,-554.84770367,0.00033626,2]
[313103657,1706748638729,-163.90303499,0.00033726,2]
[313103658,1706748638738,-508.15,0.0003374,2]
[313103659,1706748638747,-150.0,0.00034,2]
[313103660,1706748638756,-636.30550672,0.00034,4]
[313103661,1706748638766,-150.0,0.00034289,2]
[313103662,1706748638775,-634.27,0.00034386,2]
[313103663,1706748638785,-150.0,0.00034431,2]
[313103664,1706748638794,-1427.620787,0.0003452,2]
[313103665,1706748638803,-150.0,0.00034548,10]
[313103666,1706748638812,-204.1065,0.00034613,2]
[313103667,1706748638821,-167.01,0.00034615,2]
[313103668,1706748638830,-4524.96885548,0.00034712,4]
[313103669,1706748638840,-200.0,0.00034713,2]
[313103670,1706748638850,-685.97803334,0.00034713,4]
[313103671,1706748638859,-3000.0,0.00034713,2]
[313103672,1706748638868,-151.0,0.00034763,120]
[313103673,1706748638877,-8388.76965991,0.00034784,7]
[313103674,1706748638887,-2141.431181,0.00034794,2]
[313103675,1706748638896,-204.0,0.00034837,8]
[313103676,1706748638906,-4060.58188976,0.000349,2]
[313103677,1706748638915,-4060.58188969,0.000349,2]
[313103678,1706748638924,-4060.58188969,0.000349,2]
[313103679,1706748638934,-4060.58188969,0.000349,2]
[313103680,1706748638945,-4060.58188969,0.000349,2]
[313103681,1706748638956,-4060.58188969,0.000349,2]
[313103682,1706748638965,-4060.58188969,0.000349,2]
[313103683,1706748638974,-2855.241575,0.00034931,2]
[313103684,1706748638984,-8388.76965991,0.0003499,8]
[313103685,1706748638993,-5000.0,0.00035,7]
[313103686,1706748639002,-1805.51,0.00035,5]
[313103687,1706748639012,-155.0,0.00035,4]
[313103688,1706748639021,-221.51654335,0.00035,4]
[313103689,1706748639032,-225.94849707,0.00035,4]
[313103690,1706748639041,-155.41728124,0.00035,2]
[313103691,1706748639051,-119180.84021973,0.00035,4]
[313103692,1706748639060,-600.0,0.00035,3]
[313103693,1706748639069,-150.0,0.00035,2]
[313103694,1706748639078,-155.0,0.00035,2]
[313103695,1706748639087,-3000.0,0.00035,2]
[313103696,1706748639096,-1264.50569763,0.00035,4]
[313103697,1706748639106,-450.0,0.00035,3]
[313103698,1706748639115,-901.12345678,0.00035,2]
[313103699,1706748639124,-16777.5393198,0.00035031,8]
[313103700,1706748639134,-29065.0,0.00035041,2]
[313103701,1706748639143,-3569.051969,0.00035068,2]
[313103702,1706748639152,-8388.76965991,0.00035075,8]
[313103703,1706748639161,-28424.0476,0.00035085,2]
[313103704,1706748639172,-3424.0,0.00035161,2]
[313103705,1706748639181,-8388.76965991,0.00035175,8]
[313103706,1706748639190,-1816.4,0.00035185,5]
[313103707,1706748639199,-303.91266121,0.00035276,4]
[313103708,1706748639208,-155.85687053,0.0003531,3]
[313103709,1706748639217,-1373307.00963618,0.0003531,3]
[313103710,1706748639242,-6357.0,0.0003531,3]
[313103740,1706748640614,-499.99,0.00028253,2]
[313103741,1706748640623,-41800.01000005,0.0003531,3]
[313103742,1706748640637,-27771.11919402,0.0003531,3]
[313103743,1706748641326,-333.25726382,0.00028253,2]
[313103779,1706748642882,-2497.2880902,0.00028253,2]
[313103782,1706748643134,-2574.31464598,0.00028253,2]
[313103783,1706748643142,-1753.10168447,0.0003531,14]
[313103784,1706748643152,-46335.69309533,0.0003531,3]
[313103785,1706748643229,-10436.7607,0.0003531,3]
[313103786,1706748643240,-6294.4851406,0.0003531,3]
[313103797,1706748645946,-258.25989276,0.0003531,3]
[313103799,1706748646115,-629.27928532,0.0003531,3]
[313103821,1706748668344,880.92406845,0.00022501,2]
[313103825,1706749282206,-160.044691,0.00022685,2]
[313103826,1706749381855,500.0,0.0002,2]
[313103827,1706749561774,-155.0,0.00022799,2]
[313103828,1706749561796,-163.90303499,0.000228,2]
[313103829,1706749561817,-4499.68676317,0.00022899,2]
[313103830,1706749561837,-1409.8073,0.000229,2]
[313103831,1706749561859,-1818.17336343,0.000229,2]
[313103832,1706749561880,-419.0798,0.000229,2]
[313103833,1706749561901,-580.92398875,0.00022998,2]
[313103834,1706749561922,-525.21369596,0.00022999,2]
[313103835,1706749561943,-6926.2120537,0.00022999,2]
[313103856,1706749838116,-1590.90169301,0.000229,2]
[313103857,1706749838128,-4499.68676317,0.00022996,2]
[313103858,1706749838137,-155.0,0.00022996,2]
[313103859,1706749838146,-3350.11903517,0.00022997,4]
[313103860,1706749838156,-85154.50492844,0.00022999,2]
[313103861,1706749838166,-332629.41435066,0.00023,2]
[313103862,1706749838175,-150.0,0.00023,2]
[313103863,1706749838184,-9153.0,0.00023999,2]
[313103864,1706749838193,-201.6881805,0.00024,2]
[313103865,1706749838202,-1590.90169294,0.00024885,2]
[313103866,1706749838212,-4500.0656,0.00024898,2]
[313103867,1706749838222,-9877.5482906,0.00024997,2]
[313103868,1706749838231,-2004.1409291,0.00024998,2]
[313103869,1706749838241,-499.99,0.00024998,2]
[313103870,1706749838250,-2319.98350189,0.00025,2]
[313103871,1706749838260,-208.41030953,0.00025,4]
[313103872,1706749838269,-350.0,0.00025,3]
[313103873,1706749838278,-2872.84,0.00026547,2]
[313103874,1706749838287,-1686.35,0.00026614,2]
[313103875,1706749838296,-150.0,0.00026636,2]
[313103876,1706749838305,-250.0,0.00026711,2]
[313103877,1706749838315,-2000.0,0.00026774,2]
[313103878,1706749838325,-2705.0,0.00026902,2]
[313103879,1706749838336,-250.0,0.00026946,2]
[313103880,1706749838345,-400.0,0.00027,3]
[313103881,1706749838355,-800.0,0.0002703,2]
[313103882,1706749838366,-219.34,0.00027063,2]
[313103883,1706749838375,-634.27,0.00027452,2]
[313103884,1706749838384,-359.48898597,0.00027874,2]
[313103885,1706749838393,-271.86,0.00028316,2]
[313103886,1706749838403,-204.0,0.00028692,2]
[313103887,1706749838412,-19123.35328103,0.000289,2]
[313103888,1706749838422,-450.0,0.00029,3]
[313103889,1706749838431,-634.27,0.00029096,2]
[313103890,1706749838440,-202.52,0.00029259,2]
[313103891,1706749838450,-2987.0,0.000293,3]
[313103892,1706749838459,-6042.0,0.000293,3]
[313103893,1706749838468,-155.0,0.0003,2]
[313103894,1706749838478,-500.0,0.0003,2]
[313103895,1706749838487,-4524.96885548,0.00030099,4]
[313103896,1706749838496,-153143.78377457,0.000301,2]
[313103897,1706749838505,-158.79,0.00030137,2]
[313103898,1706749838514,-204.0,0.0003034,5]
[313103899,1706749838523,-2072.73,0.00030364,2]
[313103900,1706749838532,-800.0,0.00030409,2]
[313103901,1706749838541,-200.0,0.00030611,2]
[313103902,1706749838551,-634.27,0.00030739,2]
[313103903,1706749838560,-500.0,0.00031,3]
[313103904,1706749838570,-158.79,0.00031355,2]
[313103905,1706749838579,-167.01,0.00031391,2]
[313103906,1706749838589,-180.0,0.00031644,2]
[313103907,1706749838598,-300.0,0.000319,11]
[313103908,1706749838607,-204.0,0.00031987,8]
[313103909,1706749838658,-156.25094584,0.00032,2]
[313103910,1706749838667,-634.27,0.00032383,2]
[313103911,1706749838676,-158.79,0.00032572,2]
[313103912,1706749838686,-500.0,0.00032877,2]
[313103913,1706749838695,-1480.16222093,0.00033,5]
[313103914,1706749838705,-150.0,0.00033,2]
[313103915,1706749838714,-550.0,0.00033,3]
[313103916,1706749838723,-1093.59,0.00033038,2]
[313103917,1706749838733,-1522.67,0.00033038,2]
[313103918,1706749838743,-677.899,0.00033149,2]
[313103919,1706749838753,-258.168,0.00033149,2]
[313103920,1706749838762,-427.0,0.00033149,2]
[313103921,1706749838771,-320.0,0.00033149,2]
[313103922,1706749838780,-860.0,0.00033149,2]
[313103923,1706749838789,-150.475,0.00033149,2]
[313103924,1706749838798,-573.41,0.00033151,120]
[313103925,1706749838807,-204.0,0.00033635,11]
[313103926,1706749838817,-800.0,0.00033788,2]
[313103927,1706749838826,-158.79,0.0003379,2]
[313103928,1706749838835,-303.91266121,0.00033896,4]
[313103929,1706749838845,-150.0,0.00034,2]
[313103930,1706749838855,-636.30550672,0.00034,4]
[313103931,1706749838864,-901.12345678,0.00034,2]
[313103932,1706749838874,-634.27,0.00034027,2]
[313103933,1706749838883,-200.0,0.00034438,2]
[313103934,1706749838893,-700.0,0.000345,12]
[313103935,1706749838902,-321.214677,0.0003452,2]
[313103936,1706749838911,-1100.0,0.000346,12]
[313103937,1706749838921,-1500.0,0.000347,12]
[313103938,1706749838930,-151.0,0.00034751,120]
[313103939,1706749838940,-481.822015,0.00034794,2]
[313103940,1706749838950,-163.90303499,0.000348,2]
[313103941,1706749838959,-1900.0,0.000348,12]
[313103942,1706749838968,-3000.0,0.0003481,2]
[313103943,1706749838977,-163.49,0.00034828,2]
[313103944,1706749838986,-500.0,0.0003489,2]
[313103945,1706749838995,-500.0,0.0003489,2]
[313103946,1706749839005,-300.0,0.000349,12]
[313103947,1706749839014,-642.429354,0.00034931,2]
[313103948,1706749839023,-196.51086474,0.00034955,4]